bitfinex/quotes_SOLUSD_20250201
["timestamp","ask_amount","ask_price","bid_price","bid_amount"]
[1738440656866,0.91345049,220.53,220.36,19.72074853]
[1738440657067,0.91345049,220.53,220.37,13.41184853]
[1738440657510,20.0,220.52,220.37,13.41184853]
[1738440657877,2.02882062,220.53,220.37,13.41184853]
[1738440658387,20.0,220.52,220.37,13.41184853]
[1738440658789,0.8503633,220.51,220.36,6.3089]
[1738440660603,20.0,220.47,220.36,6.3089]
[1738440660805,20.0,220.47,220.37,13.41184853]
[1738440660990,0.85057037,220.46,220.35,1.5915]
[1738440663007,0.85057037,220.46,220.36,13.41184853]
[1738440663376,20.85061545,220.47,220.36,13.41184853]
[1738440664110,20.0,220.47,220.36,13.41184853]
[1738440666007,20.0,220.47,220.35,1.5915]
[1738440666306,0.85056036,220.46,220.35,1.5915]
[1738440667208,0.85056036,220.46,220.36,13.41184853]
[1738440667886,0.85056036,220.46,220.34,0.03]
[1738440670522,20.85056036,220.46,220.34,0.03]
[1738440671807,20.0,220.42,220.34,0.03]
[1738440671982,0.35095056,220.41,220.34,0.03]
[1738440672176,20.0,220.42,220.34,0.03]
[1738440672392,0.85095408,220.41,220.34,0.03]
[1738440674493,0.85095408,220.41,220.34,0.53154464]
[1738440674710,0.85095408,220.41,220.34,0.03]
[1738440675024,20.0,220.42,220.34,0.53150068]
[1738440675218,20.0,220.42,220.35,0.50143366]
[1738440675516,20.0,220.42,220.34,0.03]
[1738440675709,20.0,220.42,220.34,0.53134726]
[1738440676013,0.85081122,220.44,220.34,0.03]
[1738440682720,20.0,220.4,220.34,0.03]
[1738440682918,0.85096707,220.39,220.34,0.03]
[1738440683126,2.46236707,220.39,220.34,0.03]
[1738440683605,1.6114,220.39,220.34,0.03]
[1738440684725,20.0,220.4,220.34,0.03]
[1738440685496,20.0,220.4,220.34,0.53145528]
[1738440685695,20.0,220.4,220.34,0.03]
[1738440687718,0.85087386,220.39,220.34,0.03]
[1738440688098,0.85087386,220.39,220.3,0.53191675]
[1738440688920,0.85087386,220.39,220.3,0.03]
[1738440689293,1.6318,220.38,220.3,0.03]
[1738440689513,0.8510888,220.37,220.3,0.03]
[1738440690718,20.0,220.33,220.3,0.03]
[1738440692805,20.0,220.33,220.3,0.5319367]
[1738440693023,20.0,220.33,220.3,0.53189783]
[1738440695528,2.77640381,220.38,220.3,0.53189783]
[1738440696228,3.62733862,220.38,220.3,0.53189783]
[1738440699601,2.77640381,220.38,220.3,0.53189783]
[1738440702516,1.6318,220.38,220.3,0.53189783]
[1738440702704,20.85089166,220.39,220.3,0.53189783]
[1738440703033,20.0,220.39,220.3,0.53189783]
[1738440708731,0.85085904,220.38,220.3,0.53189783]
[1738440709042,0.85085904,220.38,220.3,0.03]
[1738440709640,20.0,220.37,220.3,0.03]
[1738440709841,0.85111811,220.36,220.29,40.0]
[1738440710317,0.85111811,220.36,220.24,0.53211799]
[1738440710511,20.0,220.31,220.24,0.03]
[1738440710744,4.25121007,220.3,220.16,0.50229839]
[1738440710911,6.4298,220.27,220.09,7.10276304]
[1738440711114,1.0,220.22,220.09,7.10276304]
[1738440711324,1.0,220.12,220.05,0.04952133]
[1738440711512,3.44,220.11,220.05,0.04952133]
[1738440711712,3.44,220.11,220.06,0.62698981]
[1738440711713,20.0,220.08,220.06,0.62698981]
[1738440712013,1.0,220.03,220.02,0.502]
[1738440712215,59.27,220.01,220.0,423.00812627]
[1738440712445,0.85264926,220.01,220.0,139.54217298]
[1738440712614,1.85264926,220.01,220.0,50.14415942]
[1738440712812,1.0,219.98,219.96,63.30058198]
[1738440713035,0.85273683,219.97,219.93,8.04731042]
[1738440713250,0.85278229,219.96,219.86,0.50501781]
[1738440713413,0.8526452,220.01,219.87,8.70944563]
[1738440713614,0.8526452,220.01,219.89,8.70944563]
[1738440713835,0.8526452,220.01,219.9,0.50492596]
[1738440713836,4.48899312,219.96,219.9,0.50492596]
[1738440714037,4.48899312,219.96,219.95,21.84985538]
[1738440714418,4.48899312,219.96,219.93,21.84985538]
[1738440714749,4.48899312,219.96,219.95,21.84985538]
[1738440715445,4.48899312,219.98,219.95,21.84985538]
[1738440715623,4.48899312,219.98,219.97,21.84985538]
[1738440716040,2.82239312,219.98,219.97,21.84985538]
[1738440716827,2.82239312,219.98,219.97,22.84985538]
[1738440717024,2.82239312,219.98,219.97,21.84985538]
[1738440717230,13.69070547,220.12,220.0,20.0]
[1738440717426,6.84535273,220.09,220.03,21.84985538]
[1738440717635,6.84535273,220.09,220.07,21.84985538]
[1738440717828,6.84535273,220.09,220.08,0.50347559]
[1738440718221,13.69070547,220.12,220.11,20.0]
[1738440718423,12.02410547,220.12,220.11,63.69971076]
[1738440718830,22.37864218,220.35,220.16,1.0]
[1738440719031,0.85121991,220.34,220.23,21.84985538]
[1738440719316,0.85121991,220.34,220.25,21.84985538]
[1738440719537,0.85121991,220.34,220.23,21.84985538]
[1738440719744,3.54,220.38,220.2,21.84985538]
[1738440719745,0.8511743,220.29,220.2,21.84985538]
[1738440719946,0.8513942,220.36,220.17,21.84985538]
[1738440720254,0.8513942,220.36,220.21,21.84985538]
[1738440720424,0.8513942,220.36,220.25,21.84985538]
[1738440720629,4.3913942,220.36,220.25,21.84985538]
[1738440722458,4.3913942,220.36,220.25,21.87985538]
[1738440723448,4.3913942,220.36,220.26,22.35207709]
[1738440723635,4.3913942,220.36,220.27,21.84985538]
[1738440723838,0.063,220.39,220.35,21.84985538]
[1738440724046,0.063,220.39,220.38,21.84985538]
[1738440724752,0.063,220.39,220.38,35.26170391]
[1738440725127,0.063,220.39,220.38,35.76227382]
[1738440725359,0.063,220.39,220.38,22.35042529]
[1738440725542,0.063,220.39,220.38,21.84985538]
[1738440725928,0.063,220.39,220.38,35.26170391]
[1738440726129,0.063,220.39,220.38,21.84985538]
[1738440726742,0.063,220.39,220.38,35.26170391]
[1738440726938,0.063,220.39,220.38,21.84985538]
[1738440728758,0.063,220.39,220.34,0.50108498]
[1738440728963,0.063,220.39,220.35,0.50121464]
[1738440729256,0.063,220.39,220.28,22.35114826]
[1738440729454,0.063,220.39,220.28,0.50129288]
[1738440729843,0.063,220.39,220.3,21.84985538]
[1738440730051,0.063,220.39,220.31,0.50175234]
[1738440730463,0.063,220.39,220.3,21.84985538]
[1738440730667,0.063,220.39,220.29,21.84985538]
[1738440730964,0.063,220.39,220.22,0.50175959]
[1738440730965,0.85094067,220.38,220.22,0.50175959]
[1738440731129,0.85094067,220.38,220.22,0.50220313]
[1738440731464,0.85094067,220.38,220.24,21.84985538]
[1738440731662,0.85094067,220.38,220.25,0.53212559]
[1738440731960,20.0,220.37,220.25,0.53212559]
[1738440732165,0.85115879,220.36,220.25,0.53212559]
[1738440732342,0.85115879,220.36,220.29,21.84985538]
[1738440732563,0.85115879,220.36,220.28,21.84985538]
[1738440732939,20.0,220.37,220.29,0.50200646]
[1738440733142,0.85100443,220.36,220.27,0.5018871]
[1738440733437,0.85100443,220.36,220.26,0.50200165]
[1738440734559,0.91400443,220.36,220.25,0.53212184]
[1738440734745,0.91400443,220.36,220.25,0.03]
[1738440735868,22.91400443,220.36,220.25,0.03]
[1738440736042,20.0,220.31,220.25,0.03]
[1738440736368,0.85149083,220.3,220.25,0.03]
[1738440737653,0.85138715,220.29,220.25,0.03]
[1738440737963,0.85138715,220.31,220.25,0.03]
[1738440738153,0.8512081,220.35,220.25,0.03]
[1738440740050,20.0,220.27,220.12,0.5323533]
[1738440740269,0.85165889,220.26,220.12,0.03]
[1738440740768,0.85165889,220.26,220.12,0.53308398]
[1738440741066,0.85165889,220.26,220.12,0.03]
[1738440741245,4.43165889,220.26,220.12,0.03]
[1738440741646,20.0,220.22,220.12,0.03]
[1738440741976,0.85172092,220.21,220.12,0.03]
[1738440743739,0.85172092,220.21,220.12,0.5330323]
[1738440744175,0.85160561,220.2,220.12,22.38288768]
[1738440744375,20.0,220.23,220.12,0.5330323]
[1738440744376,0.85159619,220.22,220.12,0.5330323]
[1738440744546,0.85159619,220.22,220.12,0.03]
[1738440746839,20.0,220.18,220.12,0.03]
[1738440747061,0.81228247,220.17,220.12,0.03]
[1738440748466,20.81218449,220.2,220.12,0.03]
[1738440749183,0.81218449,220.2,220.12,0.03]
[1738440749569,1.0,220.19,220.12,0.03]
[1738440749873,0.81233418,220.18,220.12,0.03]
[1738440750259,20.81233418,220.18,220.12,0.03]
[1738440750464,0.81233418,220.18,220.12,0.03]
[1738440751476,20.0,220.17,220.12,0.03]
[1738440751778,0.81236959,220.16,220.12,0.03]
[1738440753872,20.0,220.13,220.12,0.03]
[1738440754075,20.0,220.12,219.95,22.39347034]
[1738440754277,0.8125396,220.11,219.95,22.39347034]
[1738440754593,20.0,220.07,219.94,7.9134]
[1738440754791,0.81270735,220.06,219.94,7.9134]
[1738440755262,0.81270735,220.06,219.86,2.1123]
[1738440755263,2.0,219.94,219.74,1.70521862]
[1738440755467,20.0,219.91,219.74,1.70521862]
[1738440755702,0.813305,219.9,219.74,1.70521862]
[1738440755997,20.0,219.86,219.74,1.70521862]
[1738440756163,0.81350842,219.85,219.74,1.70521862]
[1738440756787,20.8134164,219.89,219.74,1.70521862]
[1738440756993,0.8134164,219.89,219.74,0.20521862]
[1738440757367,20.0,219.85,219.74,0.20521862]
[1738440757567,0.81355906,219.84,219.74,0.20521862]
[1738440758182,2.26542435,219.92,219.74,0.20521862]
[1738440758183,0.81347848,219.87,219.74,0.20521862]
[1738440758366,0.81332981,219.86,219.75,21.84985538]
[1738440758566,20.0,219.91,219.75,21.84985538]
[1738440758567,0.81336119,219.9,219.75,21.84985538]
[1738440758975,0.81336119,219.9,219.74,0.20521862]
[1738440759706,0.81336119,219.9,219.75,21.84985538]
[1738440759902,0.81336119,219.9,219.77,21.84985538]
[1738440760087,0.81323076,219.89,219.77,21.84985538]
[1738440760284,0.8132376,219.92,219.77,21.84985538]
[1738440760485,3.72,219.93,219.78,0.50103252]
[1738440760700,0.85298227,219.92,219.78,0.50103252]
[1738440761303,0.85298227,219.92,219.79,21.84985538]
[1738440761507,0.85298227,219.92,219.8,0.50074008]
[1738440762008,0.85282982,219.96,219.8,0.50074008]
[1738440762410,18.211237,219.94,219.8,0.50074008]
[1738440762581,0.85284714,219.93,219.8,0.50074008]
[1738440763176,0.85284714,219.93,219.8,13.41184853]
[1738440763487,0.85284714,219.93,219.81,0.50068545]
[1738440763681,0.85284714,219.93,219.79,0.50080614]
[1738440763876,0.85284714,219.93,219.76,8.0086]
[1738440763877,20.0,219.91,219.78,0.50092751]
[1738440764083,0.85298803,219.9,219.77,0.50103253]
[1738440764305,0.85298803,219.9,219.77,22.35088791]
[1738440765303,0.85298803,219.9,219.77,0.50103253]
[1738440766173,0.85298803,219.9,219.74,13.61706715]
[1738440766174,0.85298803,219.9,219.74,0.20521862]
[1738440766593,2.0545,219.89,219.74,0.20521862]
[1738440766931,0.85319518,219.88,219.74,0.20521862]
[1738440767499,20.0,219.83,219.74,0.20521862]
[1738440767805,0.85330742,219.82,219.74,0.20521862]
[1738440768301,0.85309795,219.85,219.74,0.20521862]
[1738440770417,0.85309795,219.85,219.74,0.23521862]
[1738440774325,1.85309795,219.85,219.74,0.23521862]
[1738440774909,21.85309795,219.85,219.74,0.23521862]
[1738440775107,61.1477917,219.85,219.74,0.23521862]
[1738440775313,1.0,219.83,219.74,0.23521862]
[1738440775604,0.85356896,219.82,219.74,0.23521862]
[1738440777200,20.0,219.78,219.74,0.23521862]
[1738440777400,0.85361322,219.77,219.74,0.23521862]
[1738440778334,0.85375267,219.76,219.67,0.05714286]
[1738440778495,0.85375101,219.78,219.67,0.05714286]
[1738440778896,2.0545,219.76,219.67,0.05714286]
[1738440779101,20.0,219.73,219.67,0.05714286]
[1738440779301,0.8537838,219.72,219.67,0.05714286]
[1738440779524,20.0,219.7,219.67,0.05714286]
[1738440779728,0.85385891,219.69,219.67,0.05714286]
[1738440780109,2.01064134,219.71,219.67,0.05714286]
[1738440780336,0.85393679,219.71,219.67,0.05714286]
[1738440780626,20.0,219.7,219.67,0.05714286]
[1738440780828,0.85395495,219.69,219.67,0.05714286]
[1738440781033,0.85395495,219.69,219.53,23.35231828]
[1738440781034,0.85395495,219.69,219.54,21.84985538]
[1738440781198,0.85395495,219.69,219.56,21.84985538]
[1738440781401,0.85388106,219.71,219.57,21.84985538]
[1738440781598,20.0,219.7,219.56,21.84985538]
[1738440781831,0.85390411,219.69,219.55,21.84985538]
[1738440782628,0.85390411,219.69,219.6,21.84985538]
[1738440782809,0.85390411,219.69,219.58,21.84985538]
[1738440783011,0.85390411,219.69,219.57,21.84985538]
[1738440783426,0.85390411,219.69,219.58,22.35252398]
[1738440783605,0.85390411,219.69,219.58,21.84985538]
[1738440786103,0.85375562,219.72,219.66,21.84985538]
[1738440786324,0.85352403,219.75,219.66,21.84985538]
[1738440786503,0.85352403,219.75,219.57,21.84985538]
[1738440787707,1.0,219.74,219.55,21.84985538]
[1738440787906,0.85384743,219.73,219.57,21.84985538]
[1738440788107,0.8537679,219.75,219.55,21.84985538]
[1738440788313,0.8537679,219.75,219.57,21.84985538]
[1738440788607,0.8537679,219.75,219.59,21.84985538]
[1738440789211,0.8537679,219.75,219.61,21.84985538]
[1738440789423,0.8537679,219.75,219.65,21.84985538]
[1738440789942,0.8537679,219.75,219.66,0.50210158]
[1738440790112,0.85346376,219.74,219.65,21.84985538]
[1738440790312,0.85344277,219.78,219.67,21.84985538]
[1738440790728,0.85344277,219.78,219.65,21.84985538]
[1738440791332,0.85346221,219.77,219.66,0.50206159]
[1738440791519,5.5278,219.82,219.66,0.50206159]
[1738440791520,0.85344336,219.81,219.66,0.50206159]
[1738440791728,20.0,219.79,219.63,21.84985538]
[1738440791915,0.85362276,219.78,219.63,21.84985538]
[1738440792113,0.85362276,219.78,219.61,21.84985538]
[1738440792440,20.0,219.77,219.59,22.35204387]
[1738440792737,0.85369171,219.76,219.59,22.35204387]
[1738440793040,1.85369171,219.76,219.58,7.6909]
[1738440793607,1.85369171,219.76,219.55,21.84985538]
[1738440793810,20.0,219.72,219.55,21.84985538]
[1738440794014,0.85385806,219.71,219.55,21.84985538]
[1738440794234,1.8878,219.7,219.57,0.03]
[1738440794511,0.8538681,219.69,219.57,0.03]
[1738440798341,0.8538681,219.69,219.57,22.38254687]
[1738440799217,0.8538681,219.69,219.57,21.87985538]
[1738440799940,0.8538681,219.69,219.59,21.84985538]
[1738440800349,0.8538681,219.69,219.61,21.84985538]
[1738440800539,7.6021,219.75,219.61,21.84985538]
[1738440800540,0.85362129,219.74,219.62,0.50237975]
[1738440800728,20.0,219.72,219.61,21.84985538]
[1738440800931,0.85362982,219.71,219.61,21.84985538]
[1738440802249,0.85364043,219.7,219.61,21.84985538]
[1738440802417,0.85364313,219.74,219.61,21.84985538]
[1738440802620,0.85364313,219.74,219.57,0.53237957]
[1738440802621,20.0,219.72,219.57,22.38223495]
[1738440802847,0.85376058,219.71,219.57,0.03]
[1738440804263,0.85376058,219.71,219.61,21.84985538]
[1738440804464,0.85376058,219.71,219.62,0.50233944]
[1738440804642,0.85376058,219.71,219.61,21.84985538]
[1738440805138,0.85376058,219.71,219.62,0.50237076]
[1738440805540,0.85376058,219.71,219.63,21.84985538]
[1738440805863,0.85351877,219.74,219.64,0.50217471]
[1738440806364,0.85350474,219.75,219.67,21.84985538]
[1738440806560,0.85350474,219.75,219.68,0.50186793]
[1738440806938,0.85350474,219.75,219.63,21.84985538]
[1738440807354,0.85350474,219.75,219.64,0.50223464]
[1738440808038,0.85350474,219.75,219.64,0.50221339]
[1738440808255,0.85350474,219.75,219.63,21.84985538]
[1738440808457,0.85350474,219.75,219.64,0.50215874]
[1738440808660,0.85350474,219.75,219.65,21.84985538]
[1738440808846,0.85350474,219.75,219.67,21.84985538]
[1738440809033,0.85350474,219.75,219.65,21.84985538]
[1738440809235,0.85350474,219.75,219.66,0.50194907]
[1738440809433,0.85350474,219.75,219.65,0.5019571]
[1738440810056,0.85350474,219.75,219.63,0.50203351]
[1738440810734,0.85350474,219.75,219.62,0.50203311]
[1738440810955,0.85350474,219.75,219.6,0.50227533]
[1738440811156,0.85350474,219.75,219.59,0.50237594]
[1738440811459,0.85350474,219.75,219.58,22.35228163]
[1738440811669,0.85350474,219.75,219.6,21.84985538]
[1738440811841,0.85350474,219.75,219.61,0.50235306]
[1738440812342,0.85350474,219.75,219.62,21.84985538]
[1738440812563,0.85350474,219.75,219.63,0.50217428]
[1738440813556,0.85350474,219.75,219.61,0.50219108]
[1738440815347,20.0,219.71,219.6,0.50226245]
[1738440815547,0.85369389,219.7,219.55,0.50248572]
[1738440815776,0.85369389,219.7,219.53,0.50269948]
[1738440816143,0.85369389,219.7,219.53,23.35255486]
[1738440816968,2.0152,219.69,219.53,23.35255486]
[1738440817272,2.0152,219.69,219.53,0.50269948]
[1738440817273,4.37382399,219.68,219.53,0.50269948]
[1738440817463,4.37382399,219.68,219.52,0.50292032]
[1738440817762,4.37382399,219.68,219.51,0.50297066]
[1738440817957,7.7513,219.67,219.51,23.35282604]
[1738440818166,0.85395201,219.66,219.53,21.84985538]
[1738440818351,0.85395201,219.66,219.54,0.50282632]
[1738440818958,0.85395201,219.66,219.54,22.3526817]
[1738440820174,0.85395201,219.66,219.56,21.84985538]
[1738440820338,0.85395201,219.66,219.57,0.5025478]
[1738440822379,0.85395201,219.66,219.56,0.5027145]
[1738440822551,0.85395201,219.66,219.54,0.03]
[1738440823467,0.85395201,219.66,219.54,0.53302756]
[1738440823667,1.8486,219.65,219.54,0.03]
[1738440823868,0.85402221,219.64,219.54,0.03]
[1738440824674,0.85402221,219.64,219.58,21.84985538]
[1738440824871,1.8486,219.65,219.6,21.84985538]
[1738440825073,1.8486,219.65,219.58,21.84985538]
[1738440825377,2.70238611,219.65,219.59,0.50270939]
[1738440825581,2.70238611,219.65,219.55,21.84985538]
[1738440825760,2.70238611,219.65,219.54,21.87985538]
[1738440826074,2.70238611,219.65,219.55,21.84985538]
[1738440826648,2.70238611,219.65,219.56,21.84985538]
[1738440827278,2.70238611,219.65,219.55,21.84985538]
[1738440828352,2.70238611,219.65,219.56,0.50291845]
[1738440828553,2.70238611,219.65,219.56,22.35277383]
[1738440830680,2.70238611,219.65,219.56,0.50291845]
[1738440831171,2.70238611,219.65,219.55,21.84985538]
[1738440834380,2.70238611,219.65,219.55,21.87985538]
[1738440835060,2.70238611,219.65,219.55,0.03]
[1738440835874,2.70238611,219.65,219.55,14.23286504]
[1738440836078,2.70238611,219.65,219.55,13.72990631]
[1738440836765,2.70238611,219.65,219.56,13.69990631]
[1738440837172,2.70238611,219.65,219.55,13.72990631]
[1738440838382,2.70238611,219.65,219.56,13.69990631]
[1738440838678,2.70238611,219.65,219.55,0.03]
[1738440839352,2.70238611,219.65,219.54,8.23282685]
[1738440839777,2.70238611,219.65,219.53,13.69990631]
[1738440839948,2.70238611,219.65,219.53,7.69990631]
[1738440840153,2.70238611,219.65,219.53,13.69990631]
[1738440840666,2.70238611,219.65,219.56,13.69990631]
[1738440840853,2.70238611,219.65,219.51,13.41184853]
[1738440841053,2.70238611,219.65,219.55,13.69990631]
[1738440841486,2.70238611,219.65,219.57,13.69990631]
[1738440841694,2.70238611,219.65,219.58,13.69990631]
[1738440841870,1.8486,219.65,219.57,13.69990631]
[1738440842067,0.85369152,219.64,219.57,13.69990631]
[1738440842382,1.8486,219.65,219.61,13.69990631]
[1738440842598,0.063,219.66,219.61,13.69990631]
[1738440842798,0.063,219.66,219.6,13.69990631]
[1738440842996,3.34080313,219.72,219.61,0.68288638]
[1738440843200,0.85360033,219.71,219.61,0.68288638]
[1738440843997,0.85360033,219.71,219.61,14.38279269]
[1738440844306,0.85360033,219.71,219.61,0.68288638]
[1738440844474,0.85360033,219.71,219.6,0.68290429]
[1738440844677,0.85360033,219.71,219.59,0.68292016]
[1738440844889,0.85360033,219.71,219.59,14.38282647]
[1738440845091,0.85360033,219.71,219.6,13.69990631]
[1738440845288,0.85360033,219.71,219.62,13.69990631]
[1738440845587,0.85351084,219.71,219.63,0.68280867]
[1738440846013,0.85351084,219.71,219.59,14.3827144]
[1738440846294,0.85351084,219.71,219.6,13.69990631]
[1738440846601,0.85351084,219.71,219.61,0.68286954]
[1738440846899,0.85351084,219.71,219.61,14.38277585]
[1738440847696,0.85351084,219.71,219.62,13.69990631]
[1738440847876,0.85351084,219.71,219.63,0.68281958]
[1738440848905,0.91651265,219.75,219.66,13.69990631]
[1738440849206,0.91651265,219.75,219.63,0.68281958]
[1738440849207,0.91651265,219.75,219.63,0.68271376]
[1738440849392,20.0,219.73,219.63,0.68271376]
[1738440849574,0.85355068,219.72,219.61,0.68284054]
[1738440849881,0.85355068,219.72,219.62,13.69990631]
[1738440850084,0.91647972,219.75,219.68,13.69990631]
[1738440850284,0.063,219.75,219.73,13.69990631]
[1738440850482,0.063,219.75,219.74,14.38245809]
[1738440850672,0.063,219.75,219.73,13.69990631]
[1738440851005,0.063,219.75,219.68,0.68252149]
[1738440851175,0.063,219.75,219.63,13.69990631]
[1738440851370,0.063,219.75,219.69,13.69990631]
[1738440851575,0.063,219.75,219.7,14.38249091]
[1738440852003,0.063,219.75,219.7,0.6825846]
[1738440852179,0.063,219.75,219.65,13.69990631]
[1738440852385,0.063,219.75,219.66,0.68274265]
[1738440852717,0.063,219.75,219.67,13.69990631]
[1738440853006,0.063,219.75,219.64,13.69990631]
[1738440853171,0.063,219.75,219.63,14.38261785]
[1738440853372,0.063,219.75,219.63,0.68271154]
[1738440853788,0.063,219.75,219.62,13.69990631]
[1738440854007,0.063,219.75,219.63,14.34299878]
[1738440854209,0.063,219.75,219.63,0.68281954]
[1738440854383,8.1791,219.73,219.6,0.6828443]
[1738440854709,20.0,219.7,219.58,0.68295642]
[1738440854876,0.85369911,219.69,219.57,14.38286559]
[1738440855078,0.85369911,219.69,219.57,0.68295928]
[1738440855404,0.85369911,219.69,219.61,13.69990631]
[1738440855605,0.85360503,219.71,219.62,0.68288402]
[1738440855969,0.85360503,219.71,219.62,14.38279033]
[1738440856608,0.85357629,219.72,219.63,13.69990631]
[1738440856895,2.8509605,219.74,219.66,13.69990631]
[1738440857502,2.8509605,219.74,219.64,13.69990631]
[1738440857686,2.8509605,219.74,219.65,0.68276013]
[1738440858099,2.8509605,219.74,219.64,0.68280821]
[1738440858705,2.8509605,219.74,219.61,14.38268868]
[1738440858905,2.8509605,219.74,219.59,13.69990631]
[1738440859212,2.8509605,219.74,219.6,0.68291854]
[1738440859505,2.8509605,219.74,219.59,14.38286218]
[1738440860289,2.8509605,219.74,219.6,0.68293813]
[1738440864119,2.8509605,219.74,219.6,14.38284444]
[1738440864279,2.8509605,219.74,219.64,13.69990631]
[1738440864483,1.9975,219.74,219.65,0.68277015]
[1738440864812,0.85341305,219.73,219.65,0.68277015]
[1738440865113,1.9975,219.74,219.65,0.68277015]
[1738440865709,0.063,219.75,219.67,13.69990631]
[1738440866009,0.063,219.75,219.7,13.69990631]
[1738440866208,0.063,219.75,219.71,0.68257947]
[1738440866708,0.063,219.75,219.71,14.38248578]
[1738440867014,0.063,219.75,219.73,13.69990631]
[1738440867187,0.063,219.75,219.74,14.38240247]
[1738440867786,0.063,219.75,219.74,0.68249616]
[1738440867984,0.063,219.75,219.7,14.38243393]
[1738440868208,0.063,219.75,219.71,13.69990631]
[1738440868411,0.063,219.75,219.7,0.68253638]
[1738440868917,0.063,219.75,219.7,14.38244269]
[1738440870704,0.063,219.75,219.71,13.69990631]
[1738440870881,0.063,219.75,219.72,0.68252399]
[1738440871278,0.063,219.75,219.7,0.68255537]
[1738440871494,0.063,219.75,219.69,13.69990631]
[1738440871697,0.063,219.75,219.7,0.68253167]
[1738440871898,0.063,219.75,219.69,13.69990631]
[1738440872127,0.063,219.75,219.7,0.68254375]
[1738440872333,0.063,219.75,219.66,0.68265809]
[1738440872641,0.063,219.75,219.67,0.68273271]
[1738440872924,0.063,219.75,219.68,0.68269829]
[1738440873105,0.063,219.75,219.65,14.38260495]
[1738440873418,0.063,219.75,219.66,0.68270043]
[1738440873627,0.063,219.75,219.67,0.68270219]
[1738440873802,0.063,219.75,219.66,0.68270219]
[1738440874009,0.063,219.75,219.67,0.68270844]
[1738440874194,0.063,219.75,219.68,0.68269988]
[1738440874524,0.063,219.75,219.64,13.69990631]
[1738440874525,0.063,219.75,219.65,0.68270075]
[1738440874720,0.063,219.75,219.66,0.68270225]
[1738440875020,0.063,219.75,219.67,0.68270331]
[1738440875200,0.063,219.75,219.68,0.68269875]
[1738440875410,0.063,219.75,219.65,14.38260631]
[1738440875606,0.063,219.75,219.66,0.68269869]
[1738440875806,0.063,219.75,219.67,0.68269671]
[1738440876009,0.063,219.75,219.67,0.68269347]
[1738440876214,0.063,219.75,219.68,0.68270537]
[1738440876404,0.063,219.75,219.65,13.69990631]
[1738440876405,0.063,219.75,219.66,0.68270328]
[1738440876609,0.063,219.75,219.67,0.68269504]
[1738440876822,0.063,219.75,219.68,0.68269482]
[1738440877020,0.063,219.75,219.66,0.68269475]
[1738440877331,0.063,219.75,219.67,0.682699]
[1738440877496,0.063,219.75,219.68,0.68269073]
[1738440877696,0.063,219.75,219.65,13.69990631]
[1738440877697,0.063,219.75,219.66,0.68268607]
[1738440877900,0.063,219.75,219.67,0.68269305]
[1738440878126,1.8634,219.74,219.62,0.71270688]
[1738440878430,20.0,219.7,219.62,0.03]
[1738440878594,0.85369158,219.69,219.62,0.03]
[1738440879641,20.0,219.7,219.62,13.72990631]
[1738440879843,1.8634,219.74,219.65,13.69990631]
[1738440880019,1.8634,219.74,219.66,0.68272494]
[1738440880228,1.8634,219.74,219.67,0.68272674]
[1738440880531,1.8634,219.74,219.68,0.68267523]
[1738440880731,0.063,219.75,219.69,0.6826776]
[1738440880933,0.063,219.75,219.68,0.68267089]
[1738440881248,0.85333861,219.74,219.65,0.682781]
[1738440881415,0.063,219.75,219.65,0.682781]
[1738440881616,0.91646988,219.75,219.65,0.682781]
[1738440882739,0.91646988,219.75,219.62,27.14175484]
[1738440882934,0.91646988,219.75,219.62,0.03]
[1738440883926,0.91646988,219.75,219.62,0.71288735]
[1738440884125,0.91646988,219.75,219.62,0.03]
[1738440888555,0.91646988,219.75,219.62,14.12474004]
[1738440888846,0.91646988,219.75,219.6,13.69990631]
[1738440889016,0.91646988,219.75,219.61,0.68283533]
[1738440889211,20.0,219.74,219.62,0.6828328]
[1738440889414,0.85355626,219.73,219.61,13.69990631]
[1738440889721,0.85355626,219.73,219.62,0.6828419]
[1738440889921,0.91650041,219.75,219.61,13.69990631]
[1738440890136,0.91650041,219.75,219.62,0.68283953]
[1738440890347,0.91650041,219.75,219.62,0.68283998]
[1738440890836,20.91650041,219.75,219.6,13.69990631]
[1738440891144,20.0,219.74,219.57,0.03]
[1738440891450,0.85374178,219.73,219.57,0.71299342]
[1738440892142,20.85374178,219.73,219.57,0.71299342]